[Event "Titled Tuesday Blitz July 4 Early 2023"]
[White "campochess"]
[Black "Ho, In Hei Henry"]
[BlackFideId "6002552"]
[WhiteElo "2135"]
[BlackElo "2064"]
[Result "0-1"]
[Round "9"]
[TimeControl "180+2"]
[Date "2023.07.04"]
[WhiteClock "0:00:00"]
[BlackClock "0:00:12"]
[Board "168"]

1. Nf3 {[%clk 0:02:59]}  Nf6 {[%clk 0:02:59]} 2. b3 {[%clk 0:02:59]}  e6 {[%clk 0:02:59]} 3. Bb2 {[%clk 0:02:59]}  d5 {[%clk 0:02:59]} 4. c4 {[%clk 0:02:59]}  c6 {[%clk 0:02:59]} 5. g3 {[%clk 0:02:58]}  Nbd7 {[%clk 0:02:55]} 6. Bg2 {[%clk 0:02:56]}  Bd6 {[%clk 0:02:55]} 7. d4 {[%clk 0:02:56]}  O-O {[%clk 0:02:54]} 8. O-O {[%clk 0:02:53]}  b6 {[%clk 0:02:54]} 9. cxd5 {[%clk 0:02:52]}  cxd5 {[%clk 0:02:53]} 10. Nc3 {[%clk 0:02:51]}  Ba6 {[%clk 0:02:51]} 11. Re1 {[%clk 0:02:49]}  Rc8 {[%clk 0:02:52]} 12. Rc1 {[%clk 0:02:48]}  Qe7 {[%clk 0:02:50]} 13. e4 {[%clk 0:02:40]}  dxe4 {[%clk 0:02:42]} 14. Nxe4 {[%clk 0:02:40]}  Nxe4 {[%clk 0:02:43]} 15. Rxe4 {[%clk 0:02:39]}  Nf6 {[%clk 0:02:39]} 16. Rh4 {[%clk 0:02:36]}  Ba3 {[%clk 0:02:30]} 17. Qd2 {[%clk 0:02:27]}  Rxc1+ {[%clk 0:02:24]} 18. Bxc1 {[%clk 0:02:26]}  Rc8 {[%clk 0:02:22]} 19. Bxa3 {[%clk 0:02:24]}  Qxa3 {[%clk 0:02:22]} 20. h3 {[%clk 0:02:25]}  Qc1+ {[%clk 0:02:15]} 21. Kh2 {[%clk 0:02:23]}  Qxd2 {[%clk 0:02:15]} 22. Nxd2 {[%clk 0:02:23]}  Rc2 {[%clk 0:02:14]} 23. Nc4 {[%clk 0:02:12]}  Rxf2 {[%clk 0:01:58]} 24. Kg1 {[%clk 0:02:05]}  Rxa2 {[%clk 0:01:54]} 25. Nd6 {[%clk 0:01:57]}  Rb2 {[%clk 0:01:41]} 26. Rf4 {[%clk 0:00:23]}  Rxb3 {[%clk 0:01:25]} 27. g4 {[%clk 0:00:23]}  h6 {[%clk 0:01:19]} 28. h4 {[%clk 0:00:22]}  Rg3 {[%clk 0:01:17]} 29. g5 {[%clk 0:00:19]}  hxg5 {[%clk 0:01:15]} 30. hxg5 {[%clk 0:00:19]}  Rxg5 {[%clk 0:01:15]} 31. Kh2 {[%clk 0:00:19]}  Rg4 {[%clk 0:01:09]} 32. Rxg4 {[%clk 0:00:17]}  Nxg4+ {[%clk 0:01:08]} 33. Kg3 {[%clk 0:00:17]}  Ne3 {[%clk 0:01:05]} 34. Be4 {[%clk 0:00:17]}  Bc4 {[%clk 0:00:53]} 35. Kf4 {[%clk 0:00:16]}  Bd5 {[%clk 0:00:35]} 36. Kxe3 {[%clk 0:00:16]}  Bxe4 {[%clk 0:00:34]} 37. Kxe4 {[%clk 0:00:16]}  g5 {[%clk 0:00:31]} 38. Nc8 {[%clk 0:00:16]}  f5+ {[%clk 0:00:27]} 39. Ke3 {[%clk 0:00:14]}  a5 {[%clk 0:00:23]} 40. Nxb6 {[%clk 0:00:14]}  Kf7 {[%clk 0:00:23]} 41. Na4 {[%clk 0:00:14]}  Kf6 {[%clk 0:00:23]} 42. Nc5 {[%clk 0:00:13]}  e5 {[%clk 0:00:16]} 43. d5 {[%clk 0:00:12]}  g4 {[%clk 0:00:16]} 44. d6 {[%clk 0:00:12]}  f4+ {[%clk 0:00:13]} 45. Ke4 {[%clk 0:00:12]}  g3 {[%clk 0:00:13]} 46. Kf3 {[%clk 0:00:12]}  a4 {[%clk 0:00:11]} 47. Nxa4 {[%clk 0:00:11]}  Ke6 {[%clk 0:00:12]} 48. Nc5+ {[%clk 0:00:09]}  Kxd6 {[%clk 0:00:12]} 49. Ne4+ {[%clk 0:00:09]}  Kd5 {[%clk 0:00:12]} 50. Nf6+ {[%clk 0:00:09]}  Kd4 {[%clk 0:00:12]} 51. Ng4 {[%clk 0:00:07]}  e4+ {[%clk 0:00:11]} 52. Kxf4 {[%clk 0:00:06]}  g2 {[%clk 0:00:11]} 53. Ne3 {[%clk 0:00:03]}  g1=Q {[%clk 0:00:11]} 54. Nf5+ {[%clk 0:00:03]}  Kd3 {[%clk 0:00:10]} 55. Nd6 {[%clk 0:00:03]}  Qe3+ {[%clk 0:00:09]} 56. Ke5 {[%clk 0:00:03]}  Qd4+ {[%clk 0:00:09]} 57. Ke6 {[%clk 0:00:03]}  Qxd6+ {[%clk 0:00:09]} 58. Kxd6 {[%clk 0:00:03]}  e3 {[%clk 0:00:10]} 59. Kd5 {[%clk 0:00:03]}  e2 {[%clk 0:00:11]} 60. Kd6 {[%clk 0:00:03]}  e1=Q {[%clk 0:00:12]} 61. Kd5 {[%clk 0:00:04]}  Qe4+ {[%clk 0:00:13]} 62. Kd6 {[%clk 0:00:04]}  Qf5 {[%clk 0:00:13]} 63. Ke7 {[%clk 0:00:03]}  Qg6 {[%clk 0:00:12]} 64. Kd7 {[%clk 0:00:03]}  Qf6 {[%clk 0:00:11]} 65. Kc7 {[%clk 0:00:03]}  Qe6 {[%clk 0:00:11]} 66. Kb7 {[%clk 0:00:00]}  Qd6 {[%clk 0:00:12]} 0-1


[Site "https://www.chess.com"]

[Event "Titled Tuesday Blitz July 4 Early 2023"]
[White "Vazquez Espino, Uriel"]
[Black "Horokoskii"]
[WhiteFideId "5119138"]
[WhiteElo "2341"]
[BlackElo "2067"]
[Result "1-0"]
[Round "9"]
[TimeControl "180+2"]
[Date "2023.07.04"]
[WhiteClock "0:00:56"]
[BlackClock "0:00:08"]
[Board "170"]

1. c4 {[%clk 0:02:59]}  Nf6 {[%clk 0:02:49]} 2. Nc3 {[%clk 0:02:59]}  g6 {[%clk 0:02:49]} 3. g3 {[%clk 0:03:00]}  Bg7 {[%clk 0:02:49]} 4. Bg2 {[%clk 0:03:00]}  d6 {[%clk 0:02:49]} 5. Nf3 {[%clk 0:03:01]}  O-O {[%clk 0:02:50]} 6. O-O {[%clk 0:03:01]}  Nbd7 {[%clk 0:02:48]} 7. Rb1 {[%clk 0:03:01]}  c6 {[%clk 0:02:48]} 8. b4 {[%clk 0:03:00]}  e5 {[%clk 0:02:49]} 9. d3 {[%clk 0:03:00]}  a6 {[%clk 0:02:47]} 10. a4 {[%clk 0:02:59]}  Ne8 {[%clk 0:02:44]} 11. b5 {[%clk 0:02:52]}  axb5 {[%clk 0:02:44]} 12. axb5 {[%clk 0:02:52]}  f5 {[%clk 0:02:44]} 13. Ne1 {[%clk 0:02:51]}  Qc7 {[%clk 0:02:36]} 14. Nc2 {[%clk 0:02:48]}  Nef6 {[%clk 0:02:33]} 15. Nb4 {[%clk 0:02:47]}  c5 {[%clk 0:01:54]} 16. Nbd5 {[%clk 0:02:45]}  Nxd5 {[%clk 0:01:54]} 17. Nxd5 {[%clk 0:02:45]}  Qd8 {[%clk 0:01:54]} 18. Bd2 {[%clk 0:02:21]}  Nf6 {[%clk 0:01:43]} 19. Bg5 {[%clk 0:02:21]}  Be6 {[%clk 0:01:40]} 20. Nxf6+ {[%clk 0:02:02]}  Bxf6 {[%clk 0:01:31]} 21. Bxf6 {[%clk 0:02:01]}  Qxf6 {[%clk 0:01:29]} 22. Bxb7 {[%clk 0:02:01]}  Rab8 {[%clk 0:01:29]} 23. Bg2 {[%clk 0:01:58]}  f4 {[%clk 0:01:29]} 24. Ra1 {[%clk 0:01:52]}  Rb6 {[%clk 0:00:33]} 25. Ra6 {[%clk 0:01:49]}  Rxa6 {[%clk 0:00:30]} 26. bxa6 {[%clk 0:01:49]}  Qe7 {[%clk 0:00:28]} 27. Qa4 {[%clk 0:01:45]}  Qa7 {[%clk 0:00:26]} 28. Rb1 {[%clk 0:01:43]}  Rf7 {[%clk 0:00:24]} 29. Qe8+ {[%clk 0:01:28]}  Kg7 {[%clk 0:00:23]} 30. Qxe6 {[%clk 0:01:22]}  Qxa6 {[%clk 0:00:23]} 31. Bd5 {[%clk 0:01:19]}  Ra7 {[%clk 0:00:20]} 32. Qg8+ {[%clk 0:01:01]}  Kh6 {[%clk 0:00:12]} 33. Qf8+ {[%clk 0:01:01]}  Kh5 {[%clk 0:00:10]} 34. Bf3+ {[%clk 0:00:57]}  Kg5 {[%clk 0:00:08]} 35. h4# {[%clk 0:00:56]} 1-0


[Site "https://www.chess.com"]

[Event "Titled Tuesday Blitz July 4 Early 2023"]
[White "Suduvasachmatai"]
[Black "Selkirk, Rebecca"]
[BlackFideId "14306514"]
[WhiteElo "2085"]
[BlackElo "1991"]
[Result "1-0"]
[Round "9"]
[TimeControl "180+2"]
[Date "2023.07.04"]
[WhiteClock "0:00:09"]
[BlackClock "0:00:09"]
[Board "173"]

1. e4 {[%clk 0:03:00]}  c5 {[%clk 0:02:59]} 2. c3 {[%clk 0:03:00]}  e6 {[%clk 0:03:00]} 3. d4 {[%clk 0:03:00]}  d5 {[%clk 0:02:59]} 4. exd5 {[%clk 0:03:00]}  exd5 {[%clk 0:02:59]} 5. Nf3 {[%clk 0:03:01]}  Nc6 {[%clk 0:02:59]} 6. Bb5 {[%clk 0:02:50]}  Qb6 {[%clk 0:02:57]} 7. Bxc6+ {[%clk 0:02:47]}  bxc6 {[%clk 0:02:58]} 8. O-O {[%clk 0:02:46]}  Nf6 {[%clk 0:02:55]} 9. Re1+ {[%clk 0:02:44]}  Be6 {[%clk 0:02:55]} 10. Ng5 {[%clk 0:02:44]}  Kd7 {[%clk 0:02:49]} 11. Nxe6 {[%clk 0:02:25]}  fxe6 {[%clk 0:02:50]} 12. dxc5 {[%clk 0:02:26]}  Bxc5 {[%clk 0:02:49]} 13. Qe2 {[%clk 0:02:16]}  Rae8 {[%clk 0:02:40]} 14. b4 {[%clk 0:02:11]}  Bd6 {[%clk 0:02:40]} 15. Be3 {[%clk 0:02:10]}  Qc7 {[%clk 0:02:39]} 16. h3 {[%clk 0:02:07]}  Rhf8 {[%clk 0:02:39]} 17. Nd2 {[%clk 0:02:00]}  Bf4 {[%clk 0:02:38]} 18. Nf3 {[%clk 0:01:57]}  Ne4 {[%clk 0:02:34]} 19. Nd4 {[%clk 0:01:34]}  Nxc3 {[%clk 0:02:12]} 20. Qg4 {[%clk 0:01:31]}  Be5 {[%clk 0:01:58]} 21. Nb3 {[%clk 0:01:27]}  Ne4 {[%clk 0:01:49]} 22. Rad1 {[%clk 0:01:22]}  Kc8 {[%clk 0:01:38]} 23. Nc5 {[%clk 0:01:18]}  Nxc5 {[%clk 0:01:24]} 24. Bxc5 {[%clk 0:01:17]}  Rf6 {[%clk 0:01:22]} 25. Qe2 {[%clk 0:01:06]}  Bh2+ {[%clk 0:01:16]} 26. Kh1 {[%clk 0:01:01]}  Bd6 {[%clk 0:01:16]} 27. Qa6+ {[%clk 0:01:00]}  Kb8 {[%clk 0:01:02]} 28. Bxd6 {[%clk 0:00:56]}  Qxd6 {[%clk 0:01:03]} 29. b5 {[%clk 0:00:55]}  e5 {[%clk 0:00:51]} 30. Rb1 {[%clk 0:00:49]}  c5 {[%clk 0:00:41]} 31. b6 {[%clk 0:00:40]}  axb6 {[%clk 0:00:41]} 32. a4 {[%clk 0:00:37]}  Re7 {[%clk 0:00:34]} 33. a5 {[%clk 0:00:31]}  Rb7 {[%clk 0:00:30]} 34. Re2 {[%clk 0:00:21]}  b5 {[%clk 0:00:22]} 35. Qxd6+ {[%clk 0:00:18]}  Rxd6 {[%clk 0:00:23]} 36. Rxe5 {[%clk 0:00:18]}  c4 {[%clk 0:00:20]} 37. a6 {[%clk 0:00:14]}  Rbb6 {[%clk 0:00:20]} 38. Re8+ {[%clk 0:00:10]}  Kc7 {[%clk 0:00:09]} 39. a7 {[%clk 0:00:09]} 1-0


[Site "https://www.chess.com"]

[Event "Titled Tuesday Blitz July 4 Early 2023"]
[White "NtcPou"]
[Black "HeinichessPY"]
[WhiteElo "2024"]
[BlackElo "2128"]
[Result "0-1"]
[Round "9"]
[TimeControl "180+2"]
[Date "2023.07.04"]
[WhiteClock "0:00:03"]
[BlackClock "0:00:17"]
[Board "176"]

1. e4 {[%clk 0:03:00]}  c5 {[%clk 0:02:59]} 2. Nf3 {[%clk 0:02:59]}  Nc6 {[%clk 0:02:58]} 3. Bb5 {[%clk 0:02:58]}  g6 {[%clk 0:02:55]} 4. Bxc6 {[%clk 0:02:56]}  dxc6 {[%clk 0:02:56]} 5. O-O {[%clk 0:02:56]}  Bg7 {[%clk 0:02:56]} 6. Re1 {[%clk 0:02:48]}  e5 {[%clk 0:02:55]} 7. d3 {[%clk 0:02:40]}  Qe7 {[%clk 0:02:49]} 8. h3 {[%clk 0:02:38]}  Nf6 {[%clk 0:02:47]} 9. Be3 {[%clk 0:02:37]}  Nd7 {[%clk 0:02:47]} 10. a4 {[%clk 0:02:35]}  Nf8 {[%clk 0:02:47]} 11. a5 {[%clk 0:02:34]}  Ne6 {[%clk 0:02:46]} 12. c3 {[%clk 0:02:28]}  O-O {[%clk 0:02:44]} 13. Nbd2 {[%clk 0:02:23]}  f5 {[%clk 0:02:36]} 14. Nc4 {[%clk 0:02:04]}  f4 {[%clk 0:02:23]} 15. Bc1 {[%clk 0:02:01]}  Ng5 {[%clk 0:02:17]} 16. Qe2 {[%clk 0:01:05]}  Nxf3+ {[%clk 0:01:45]} 17. Qxf3 {[%clk 0:01:05]}  Be6 {[%clk 0:01:46]} 18. b3 {[%clk 0:01:04]}  Rad8 {[%clk 0:01:44]} 19. Ba3 {[%clk 0:01:03]}  Rd7 {[%clk 0:01:20]} 20. Rad1 {[%clk 0:01:02]}  Rfd8 {[%clk 0:01:19]} 21. Qe2 {[%clk 0:01:01]}  Rf8 {[%clk 0:01:00]} 22. f3 {[%clk 0:01:01]}  Qg5 {[%clk 0:00:57]} 23. Bxc5 {[%clk 0:00:48]}  Bxh3 {[%clk 0:00:55]} 24. Bxf8 {[%clk 0:00:47]}  Bxf8 {[%clk 0:00:52]} 25. Qf2 {[%clk 0:00:46]}  Be6 {[%clk 0:00:40]} 26. b4 {[%clk 0:00:44]}  Be7 {[%clk 0:00:35]} 27. Kf1 {[%clk 0:00:36]}  Qh5 {[%clk 0:00:35]} 28. Ke2 {[%clk 0:00:26]}  Bh4 {[%clk 0:00:35]} 29. g3 {[%clk 0:00:16]}  Bxg3 {[%clk 0:00:33]} 30. Qg2 {[%clk 0:00:14]}  Bxe1 {[%clk 0:00:21]} 31. Rxe1 {[%clk 0:00:15]}  Bxc4 {[%clk 0:00:20]} 32. dxc4 {[%clk 0:00:15]}  Qh4 {[%clk 0:00:18]} 33. Rh1 {[%clk 0:00:14]}  Qd8 {[%clk 0:00:18]} 34. Qh3 {[%clk 0:00:03]}  Rd2+ {[%clk 0:00:17]} 0-1


[Site "https://www.chess.com"]

[Event "Titled Tuesday Blitz July 4 Early 2023"]
[White "Vokhidov, Shamsiddin"]
[Black "Pranav, V"]
[WhiteFideId "14204223"]
[BlackFideId "25060783"]
[WhiteElo "2936"]
[BlackElo "3013"]
[Result "1/2-1/2"]
[Round "10"]
[TimeControl "180+2"]
[Date "2023.07.04"]
[WhiteClock "0:00:13"]
[BlackClock "0:00:15"]
[Board "3"]

1. e4 {[%clk 0:03:00]}  c5 {[%clk 0:02:57]} 2. Nf3 {[%clk 0:03:00]}  Nc6 {[%clk 0:02:58]} 3. Bb5 {[%clk 0:03:00]}  g6 {[%clk 0:02:58]} 4. Bxc6 {[%clk 0:03:00]}  dxc6 {[%clk 0:02:59]} 5. d3 {[%clk 0:03:00]}  Bg7 {[%clk 0:02:59]} 6. O-O {[%clk 0:03:01]}  e5 {[%clk 0:02:59]} 7. a4 {[%clk 0:03:00]}  Qe7 {[%clk 0:02:59]} 8. a5 {[%clk 0:03:00]}  Nf6 {[%clk 0:02:59]} 9. h3 {[%clk 0:02:59]}  O-O {[%clk 0:02:59]} 10. Be3 {[%clk 0:02:58]}  Rd8 {[%clk 0:02:52]} 11. Nbd2 {[%clk 0:02:56]}  Rb8 {[%clk 0:02:45]} 12. Qc1 {[%clk 0:02:46]}  Ne8 {[%clk 0:02:31]} 13. Nc4 {[%clk 0:02:35]}  f6 {[%clk 0:02:30]} 14. b3 {[%clk 0:02:31]}  Nc7 {[%clk 0:02:25]} 15. Bh6 {[%clk 0:02:21]}  Bh8 {[%clk 0:02:16]} 16. Nh2 {[%clk 0:02:12]}  Ne6 {[%clk 0:02:12]} 17. f4 {[%clk 0:02:11]}  exf4 {[%clk 0:01:38]} 18. Bxf4 {[%clk 0:02:12]}  Nxf4 {[%clk 0:01:38]} 19. Qxf4 {[%clk 0:02:13]}  Be6 {[%clk 0:01:39]} 20. Ng4 {[%clk 0:02:11]}  Bxg4 {[%clk 0:01:36]} 21. hxg4 {[%clk 0:02:11]}  f5 {[%clk 0:01:34]} 22. gxf5 {[%clk 0:01:24]}  Bxa1 {[%clk 0:01:32]} 23. Rxa1 {[%clk 0:01:24]}  gxf5 {[%clk 0:01:32]} 24. exf5 {[%clk 0:01:15]}  Qf6 {[%clk 0:01:15]} 25. Re1 {[%clk 0:01:11]}  Re8 {[%clk 0:01:14]} 26. Re6 {[%clk 0:01:09]}  Qd4+ {[%clk 0:01:13]} 27. Qxd4 {[%clk 0:01:08]}  cxd4 {[%clk 0:01:13]} 28. Nd6 {[%clk 0:00:39]}  Rxe6 {[%clk 0:01:01]} 29. fxe6 {[%clk 0:00:39]}  Kf8 {[%clk 0:01:01]} 30. Nf5 {[%clk 0:00:39]}  c5 {[%clk 0:01:01]} 31. Kf2 {[%clk 0:00:39]}  b6 {[%clk 0:00:57]} 32. axb6 {[%clk 0:00:24]}  Rxb6 {[%clk 0:00:55]} 33. e7+ {[%clk 0:00:24]}  Kf7 {[%clk 0:00:52]} 34. Kf3 {[%clk 0:00:25]}  Re6 {[%clk 0:00:50]} 35. g4 {[%clk 0:00:25]}  Re1 {[%clk 0:00:44]} 36. Kf4 {[%clk 0:00:25]}  Re2 {[%clk 0:00:43]} 37. g5 {[%clk 0:00:23]}  a5 {[%clk 0:00:40]} 38. Kf3 {[%clk 0:00:13]}  Rxc2 {[%clk 0:00:35]} 39. Ke4 {[%clk 0:00:14]}  Rf2 {[%clk 0:00:28]} 40. Ke5 {[%clk 0:00:13]}  Rxf5+ {[%clk 0:00:16]} 41. Kxf5 {[%clk 0:00:14]}  a4 {[%clk 0:00:17]} 42. bxa4 {[%clk 0:00:13]}  c4 {[%clk 0:00:17]} 43. a5 {[%clk 0:00:12]}  cxd3 {[%clk 0:00:13]} 44. a6 {[%clk 0:00:12]}  d2 {[%clk 0:00:14]} 45. e8=Q+ {[%clk 0:00:12]}  Kxe8 {[%clk 0:00:14]} 46. a7 {[%clk 0:00:13]}  d1=Q {[%clk 0:00:14]} 47. a8=Q+ {[%clk 0:00:14]}  Kd7 {[%clk 0:00:15]} 48. Qb7+ {[%clk 0:00:12]}  Kd6 {[%clk 0:00:13]} 49. Qb6+ {[%clk 0:00:12]}  Kd5 {[%clk 0:00:13]} 50. Qb5+ {[%clk 0:00:12]}  Kd6 {[%clk 0:00:13]} 51. Qb6+ {[%clk 0:00:12]}  Kd7 {[%clk 0:00:14]} 52. Qb7+ {[%clk 0:00:13]}  Kd6 {[%clk 0:00:15]} 53. Qb6+ {[%clk 0:00:13]} 1/2-1/2


[Site "https://www.chess.com"]

[Event "Titled Tuesday Blitz July 4 Early 2023"]
[White "Chigaev, Maksim"]
[Black "Nakamura, Hikaru"]
[WhiteFideId "4108116"]
[BlackFideId "2016192"]
[WhiteElo "2944"]
[BlackElo "3148"]
[Result "1/2-1/2"]
[Round "10"]
[TimeControl "180+2"]
[Date "2023.07.04"]
[WhiteClock "0:00:04"]
[BlackClock "0:00:06"]
[Board "5"]

1. e4 {[%clk 0:02:56]}  e5 {[%clk 0:02:55]} 2. Nf3 {[%clk 0:02:56]}  Nc6 {[%clk 0:02:55]} 3. Bc4 {[%clk 0:02:56]}  Nf6 {[%clk 0:02:54]} 4. d3 {[%clk 0:02:57]}  Bc5 {[%clk 0:02:54]} 5. c3 {[%clk 0:02:58]}  d6 {[%clk 0:02:53]} 6. Bg5 {[%clk 0:02:58]}  h6 {[%clk 0:02:53]} 7. Bh4 {[%clk 0:02:59]}  a6 {[%clk 0:02:54]} 8. Nbd2 {[%clk 0:02:52]}  Ba7 {[%clk 0:02:53]} 9. a4 {[%clk 0:02:51]}  g5 {[%clk 0:02:53]} 10. Bg3 {[%clk 0:02:51]}  Qe7 {[%clk 0:02:53]} 11. O-O {[%clk 0:02:49]}  O-O {[%clk 0:02:34]} 12. b4 {[%clk 0:02:45]}  Nh7 {[%clk 0:02:27]} 13. Re1 {[%clk 0:02:34]}  h5 {[%clk 0:02:26]} 14. h4 {[%clk 0:02:32]}  g4 {[%clk 0:02:26]} 15. Nh2 {[%clk 0:02:32]}  Qd8 {[%clk 0:02:26]} 16. b5 {[%clk 0:02:13]}  Ne7 {[%clk 0:02:26]} 17. d4 {[%clk 0:02:12]}  exd4 {[%clk 0:02:21]} 18. cxd4 {[%clk 0:02:11]}  Bxd4 {[%clk 0:02:21]} 19. Rc1 {[%clk 0:02:04]}  axb5 {[%clk 0:02:21]} 20. Bxb5 {[%clk 0:01:59]}  Bg7 {[%clk 0:02:00]} 21. Kh1 {[%clk 0:01:57]}  f5 {[%clk 0:01:57]} 22. f4 {[%clk 0:01:46]}  c6 {[%clk 0:01:49]} 23. Bd3 {[%clk 0:01:33]}  d5 {[%clk 0:01:49]} 24. e5 {[%clk 0:01:33]}  Ng6 {[%clk 0:01:50]} 25. Nb3 {[%clk 0:01:29]}  Nxh4 {[%clk 0:01:50]} 26. Nc5 {[%clk 0:01:30]}  Ng6 {[%clk 0:01:49]} 27. Rf1 {[%clk 0:01:20]}  h4 {[%clk 0:01:42]} 28. Be1 {[%clk 0:01:20]}  g3 {[%clk 0:01:34]} 29. Nf3 {[%clk 0:01:20]}  Nxf4 {[%clk 0:01:33]} 30. Bd2 {[%clk 0:01:20]}  Ng6 {[%clk 0:01:23]} 31. Re1 {[%clk 0:01:04]}  b6 {[%clk 0:01:20]} 32. Nb3 {[%clk 0:00:57]}  c5 {[%clk 0:01:20]} 33. Bb5 {[%clk 0:00:51]}  h3 {[%clk 0:01:05]} 34. a5 {[%clk 0:00:44]}  f4 {[%clk 0:00:55]} 35. e6 {[%clk 0:00:44]}  d4 {[%clk 0:00:29]} 36. axb6 {[%clk 0:00:35]}  hxg2+ {[%clk 0:00:28]} 37. Kxg2 {[%clk 0:00:34]}  Bb7 {[%clk 0:00:28]} 38. e7 {[%clk 0:00:20]}  Nxe7 {[%clk 0:00:26]} 39. Nxc5 {[%clk 0:00:19]}  Bd5 {[%clk 0:00:26]} 40. Ne6 {[%clk 0:00:14]}  Qd6 {[%clk 0:00:24]} 41. Bc4 {[%clk 0:00:14]}  Rf6 {[%clk 0:00:15]} 42. Nxf4 {[%clk 0:00:08]}  Bxc4 {[%clk 0:00:14]} 43. Rxc4 {[%clk 0:00:08]}  Rb8 {[%clk 0:00:11]} 44. Rxd4 {[%clk 0:00:04]}  Qxb6 {[%clk 0:00:05]} 45. Rxe7 {[%clk 0:00:05]}  Qc6 {[%clk 0:00:03]} 46. Rxg7+ {[%clk 0:00:05]}  Kxg7 {[%clk 0:00:04]} 47. Nh5+ {[%clk 0:00:05]}  Kf7 {[%clk 0:00:04]} 48. Nxf6 {[%clk 0:00:06]}  Nxf6 {[%clk 0:00:05]} 49. Rf4 {[%clk 0:00:05]}  Rd8 {[%clk 0:00:05]} 50. Qe2 {[%clk 0:00:03]}  Kg8 {[%clk 0:00:05]} 51. Rf5 {[%clk 0:00:03]}  Rd5 {[%clk 0:00:04]} 52. Rxd5 {[%clk 0:00:03]}  Qxd5 {[%clk 0:00:05]} 53. Kxg3 {[%clk 0:00:03]}  Ne4+ {[%clk 0:00:05]} 54. Kg2 {[%clk 0:00:04]}  Nxd2 {[%clk 0:00:06]} 55. Qxd2 {[%clk 0:00:03]}  Qxd2+ {[%clk 0:00:06]} 56. Nxd2 {[%clk 0:00:04]} 1/2-1/2


[Site "https://www.chess.com"]

[Event "Titled Tuesday Blitz July 4 Early 2023"]
[White "Durarbayli, Vasif"]
[Black "Nihal Sarin"]
[WhiteFideId "13402935"]
[BlackFideId "25092340"]
[WhiteElo "2919"]
[BlackElo "3118"]
[Result "0-1"]
[Round "10"]
[TimeControl "180+2"]
[Date "2023.07.04"]
[WhiteClock "0:00:00"]
[BlackClock "0:00:22"]
[Board "6"]

1. e4 {[%clk 0:03:00]}  e5 {[%clk 0:02:54]} 2. Nf3 {[%clk 0:03:01]}  Nc6 {[%clk 0:02:54]} 3. Bb5 {[%clk 0:03:01]}  Nf6 {[%clk 0:02:54]} 4. d3 {[%clk 0:03:01]}  Bc5 {[%clk 0:02:54]} 5. c3 {[%clk 0:03:00]}  O-O {[%clk 0:02:52]} 6. O-O {[%clk 0:03:01]}  d6 {[%clk 0:02:52]} 7. Bg5 {[%clk 0:02:58]}  h6 {[%clk 0:02:52]} 8. Bh4 {[%clk 0:02:56]}  a6 {[%clk 0:02:52]} 9. Bxc6 {[%clk 0:02:55]}  bxc6 {[%clk 0:02:53]} 10. d4 {[%clk 0:02:56]}  Ba7 {[%clk 0:02:41]} 11. dxe5 {[%clk 0:02:49]}  dxe5 {[%clk 0:02:42]} 12. Qe2 {[%clk 0:02:40]}  Re8 {[%clk 0:02:31]} 13. Rd1 {[%clk 0:02:31]}  Qe7 {[%clk 0:02:30]} 14. Nbd2 {[%clk 0:02:30]}  g5 {[%clk 0:02:18]} 15. Bg3 {[%clk 0:02:30]}  Nh5 {[%clk 0:02:19]} 16. Nc4 {[%clk 0:02:19]}  Nf4 {[%clk 0:02:19]} 17. Qc2 {[%clk 0:01:46]}  Qf6 {[%clk 0:02:12]} 18. Nfxe5 {[%clk 0:01:05]}  Rxe5 {[%clk 0:02:09]} 19. Nxe5 {[%clk 0:01:06]}  Qxe5 {[%clk 0:02:09]} 20. Rd8+ {[%clk 0:01:07]}  Kg7 {[%clk 0:02:09]} 21. Rad1 {[%clk 0:00:55]}  Rb8 {[%clk 0:02:03]} 22. Bxf4 {[%clk 0:00:37]}  Qxf4 {[%clk 0:02:03]} 23. Qd2 {[%clk 0:00:20]}  Qxe4 {[%clk 0:01:37]} 24. Re1 {[%clk 0:00:18]}  Qf5 {[%clk 0:01:24]} 25. h3 {[%clk 0:00:08]}  Be6 {[%clk 0:01:22]} 26. Rxb8 {[%clk 0:00:09]}  Bxb8 {[%clk 0:01:23]} 27. Qd4+ {[%clk 0:00:08]}  Qf6 {[%clk 0:01:21]} 28. Qxf6+ {[%clk 0:00:09]}  Kxf6 {[%clk 0:01:21]} 29. Re4 {[%clk 0:00:10]}  Ba7 {[%clk 0:01:01]} 30. Ra4 {[%clk 0:00:10]}  Bc8 {[%clk 0:01:02]} 31. Rc4 {[%clk 0:00:10]}  c5 {[%clk 0:01:00]} 32. Re4 {[%clk 0:00:11]}  Bb6 {[%clk 0:00:58]} 33. Re8 {[%clk 0:00:11]}  Be6 {[%clk 0:00:59]} 34. Ra8 {[%clk 0:00:07]}  Bxa2 {[%clk 0:00:42]} 35. Rxa6 {[%clk 0:00:07]}  Bd5 {[%clk 0:00:43]} 36. Ra4 {[%clk 0:00:06]}  Ke5 {[%clk 0:00:38]} 37. h4 {[%clk 0:00:06]}  c4 {[%clk 0:00:37]} 38. hxg5 {[%clk 0:00:06]}  hxg5 {[%clk 0:00:38]} 39. Ra1 {[%clk 0:00:06]}  c6 {[%clk 0:00:23]} 40. Re1+ {[%clk 0:00:06]}  Kf4 {[%clk 0:00:24]} 41. Re8 {[%clk 0:00:04]}  f5 {[%clk 0:00:23]} 42. Kf1 {[%clk 0:00:04]}  Be4 {[%clk 0:00:23]} 43. Rg8 {[%clk 0:00:04]}  g4 {[%clk 0:00:23]} 44. Rb8 {[%clk 0:00:02]}  Bc5 {[%clk 0:00:22]} 45. Kg1 {[%clk 0:00:01]}  g3 {[%clk 0:00:22]} 46. Kf1 {[%clk 0:00:00]}  Bd3+ {[%clk 0:00:22]} 0-1


[Site "https://www.chess.com"]